Cogmind - Beta 14 @@@ ROGUE MODE // 2024.11.02 @ 03:12:35 Player: Miles Result: Destroyed by XG-XYL(R) with Subdweller Machine Gun Performance ------------- Evolutions (0) 0 Regions Visited (2) 400 Robots Destroyed (15) 75 Value Destroyed (344) 344 Prototype IDs (0) 0 Alien Tech Used (0) 0 Bonus (-12) -12 TOTAL SCORE: 807 Bonus ------- Friendly Fire -12 Cogmind --------- Core Integrity 0/250 Matter 272/300 Energy 119/125 System Corruption 0% Temperature Cool (0) Movement Walking (190) Ox1 Location -10/Subcaves Parts ------- > --- POWER (1) -------- Light Ion Engine > --- PROPULSION (2) --- Aluminum Leg Aluminum Leg > --- UTILITY (2) ------ Large Storage Unit Improved Terrain Scanner > --- WEAPON (2) ------- Particle Gun Light Cannon > --- INVENTORY (15) --- Light Ion Engine Aluminum Leg Aluminum Leg Aluminum Leg Aluminum Leg Wheel Wheel Compact Wheel Large Matter Pod (83) Scrap Shield Small Laser Small Laser Light Assault Rifle Hammer Peak State ------------ > --- POWER ------------ Light Ion Engine > --- PROPULSION ------- Aluminum Leg Aluminum Leg > --- UTILITY ---------- Large Storage Unit Improved Terrain Scanner > --- WEAPON ----------- Small Laser Particle Gun > --- INVENTORY -------- Light Ion Engine Light Treads Aluminum Leg Aluminum Leg Aluminum Leg Aluminum Leg Wheel Wheel Compact Wheel Improved Terrain Scanner Medium Laser Small Laser Light Assault Rifle Light Cannon Hammer [Rating: 11] Favorites ----------- Power Ion Engine Engine Ion Engine Propulsion Aluminum Leg Leg Aluminum Leg Utility Improved Terrain Scanner Device Improved Terrain Scanner Storage Small Storage Unit Weapon Medium Laser Energy Gun Medium Laser Ballistic Gun Light Assault Rifle Ballistic Cannon Light Cannon Impact Weapon Hammer Build | -11 -10 -10 ------- Run | Yrd Mat Sub Slots Evolved . | . . . Power . | . . . Propulsion . | . . . Utility . | . . . Weapon . | . . . Parts Attached 21 | 7 12 2 Power 2 | 1 1 . Engine 2 | 1 1 . Core . | . . . Reactor . | . . . Propulsion 5 | 2 3 . Treads . | . . . Leg 5 | 2 3 . Wheel . | . . . Hover . | . . . Flight . | . . . Utility 4 | 2 2 . Device 2 | 1 1 . Storage 2 | 1 1 . Processor . | . . . Hackware . | . . . Protection . | . . . Artifact . | . . . Weapon 10 | 2 6 2 Energy Gun 5 | 2 3 . Energy Cannon . | . . . Ballistic Gun 1 | . 1 . Ballistic Cannon 1 | . . 1 Launcher . | . . . Special Weapon . | . . . Impact Weapon 3 | . 2 1 Slashing Weapon . | . . . Piercing Weapon . | . . . Special Melee Weapon . | . . . Unidentified Prototypes . | . . . Parts Lost 4 | . 4 . Power 1 | . 1 . Propulsion 2 | . 2 . Utility . | . . . Weapon 1 | . 1 . Highest Loss Streak 4 | . 4 . To Critical Strikes . | . . . Average Slot Usage (%) 98 | . 98 100 Engine 13 | . 13 14 Leg 27 | . 27 28 Device 14 | . 14 14 Storage 14 | . 14 14 Energy Gun 24 | . 23 26 Ballistic Gun 1 | . 1 . Impact Weapon 2 | . 2 . Peak Build Rating 11 | 10 11 11 Average Rating 9 | 6 10 11 On Entrance 7 | . 10 11 Naked Turns . | . . . Heaviest Build 30 | 15 30 28 Greatest Support 20 | 20 20 20 Greatest Overweight (x) 2 | . 2 1 Average Overweight (x) . | . . 1 Largest Inventory Capacity 15 | 8 15 15 Average Capacity 11 | 7 10 15 Most Carried 15 | 8 15 15 Average Carried 10 | 4 9 14 Final Capacity 15 | 8 15 15 Final Carried 15 | 8 15 15 Class Distribution -------------------- 68% | Mutant 31% | Scavenger-Mutant Dominant Class ---------------- Mutant | -10/Materials Scavenger-Mutant | -10/Subcaves Resources | -11 -10 -10 ----------- Run | Yrd Mat Sub Matter Collected 469 | 242 144 83 Remotely . | . . . Salvage Created 540 | 85 402 53 Parts 28 | 7 19 2 Haulers Intercepted 1 | . 1 . Recyclers Shooed 1 | 1 . . Parts Field Recycled . | . . . Retrieved Matter . | . . . Parts Self-Destructed 2 | . . 2 Prevented . | . . . Kills | -11 -10 -10 ------- Run | Yrd Mat Sub Combat Hostiles Destroyed 11 | . 10 1 Melee 1 | . 1 . Guns 10 | . 9 1 Classes Destroyed 5 | 1 3 1 Tunneler 3 | 3 . . Hauler 1 | . 1 . Swarmer 3 | . 3 . Grunt 7 | . 7 . Subdweller 1 | . . 1 Best Kill Streak 7 | 2 7 1 Combat Bots Only 7 | . 7 1 Max Kills in Single Turn 1 | 1 1 1 Gunslinging . | . . . Exploded . | . . . Melee 1 | . 1 . Uniques/NPCs Destroyed . | . . . Combat | -11 -10 -10 -------- Run | Yrd Mat Sub Hostile Shots Fired 101 | . 87 14 Missed 29 | . 26 3 Damage Taken 877 | . 654 223 Core 254 | . 169 85 Absorbed by Shields . | . . . Core Remaining (%) 100 | 100 . . Volleys Fired 64 | 12 43 9 Largest 2 | 1 2 2 Hottest 105 | 50 105 105 Shots Fired 82 | 12 56 14 Gun 80 | 12 56 12 Cannon 2 | . . 2 Launcher . | . . . Special . | . . . Kinetic 18 | . 16 2 Thermal 64 | 12 40 12 Explosive . | . . . Electromagnetic . | . . . Robot Hit Streak 14 | 2 14 4 Robot Miss Streak 3 | 3 2 1 Penetration Max . | . . . Secondary Targets 1 | . 1 . Max Gunslinging Chain 1 | . 1 . Shots Hit Robots 58 | 5 44 9 Core Hits 26 | 3 20 3 Critical Kills . | . . . Critical Parts Destroyed 1 | . 1 . Critical Strikes 4 | 1 3 . Burn 3 | 1 2 . Smash 1 | . 1 . Melee Attacks 3 | . 3 . Impact 3 | . 3 . Slashing . | . . . Piercing . | . . . Sneak Attacks 1 | . 1 . Combat Hostiles . | . . . Follow-up Attacks . | . . . Damage Inflicted 777 | 62 569 146 Guns 679 | 62 504 113 Cannons 33 | . . 33 Explosions . | . . . Melee 65 | . 65 . Ramming . | . . . Kinetic 154 | . 121 33 Thermal 558 | 62 383 113 Explosive . | . . . Electromagnetic . | . . . Impact 65 | . 65 . Slashing . | . . . Piercing . | . . . Highest Corruption . | . . . Average Corruption . | . . . Corruption Purged . | . . . Corruption Blocked . | . . . Overload Shots . | . . . Overflow Damage 25 | . 25 . Projectiles . | . . . Explosions . | . . . Melee 25 | . 25 . Knockbacks . | . . . Impact . | . . . Kinetic . | . . . Secondary . | . . . Self-Inflicted Damage . | . . . Shots . | . . . Rammed . | . . . Targets Rammed . | . . . Kicked . | . . . Crushed . | . . . Highest Temperature 288 | 60 288 . Average Temperature 87 | 24 102 . Received Heat Transfer 300 | . 300 . Effects 3 | . 3 . Energy Bleed 1 | . 1 . Interference 2 | . 2 . Siege Activations . | . . . Robots Corrupted . | . . . Combat Hostiles . | . . . Parts Fried 1 | . 1 . Impact Corruptions 1 | . 1 . Robots Melted . | . . . Combat Hostiles . | . . . Parts Melted 3 | 1 1 1 Heat Transferred 1729 | 259 1198 272 Parts Sabotaged . | . . . Parts Stolen . | . . . Parts Stripped . | . . . Power Chain Reactions . | . . . Alert | -11 -10 -10 ------- Run | Yrd Mat Sub Peak Influence 270 | 15 270 . Initial 9 | . 9 . Average 65 | 5 74 . Maximum Alert Level 1 | . 1 . Low Security (%) 88 | 100 86 . Level 1 11 | . 13 . Level 2 . | . . . Level 3 . | . . . Level 4 . | . . . Level 5 . | . . . High Security . | . . . Max Security . | . . . Squads Dispatched 2 | . 2 . Investigation . | . . . Extermination . | . . . Reinforcement 2 | . 2 . Assault . | . . . Garrison . | . . . Intercept . | . . . Searches Triggered . | . . . Construction Impeded . | . . . Haulers Reinforced . | . . . Active Scanning Responses . | . . . Cargo Convoy Interrupts . | . . . Stealth | -11 -10 -10 --------- Run | Yrd Mat Sub Distress Signals 2 | . 2 . Communications Jammed . | . . . Distress Signals . | . . . Times Spotted 25 | . 18 7 Peak Tracking Total 8 | . 7 8 Tactical Retreats 1 | . 1 . Traps | -11 -10 -10 ------- Run | Yrd Mat Sub Traps Triggered . | . . . Indirectly . | . . . Trap Hack Attempts . | . . . Triggered . | . . . Disarmed . | . . . Reprogrammed . | . . . Reused . | . . . Traps Extracted . | . . . Installed . | . . . Triggered . | . . . Machines | -11 -10 -10 ---------- Run | Yrd Mat Sub Machines Disabled . | . . . Max in Single Turn . | . . . Machines Repaired . | . . . Machines Dismantled . | . . . Machines Sabotaged . | . . . Overloaded Fab Kills . | . . . Hacking | -11 -10 -10 --------- Run | Yrd Mat Sub Machines Accessed 1 | . 1 . Terminals 1 | . 1 . Fabricators . | . . . Repair Stations . | . . . Recycling Units . | . . . Scanalyzers . | . . . Garrison Access . | . . . Total Hacks 1 | . 1 . Successful . | . . . Failed 1 | . 1 . Catastrophic . | . . . Database Lockouts . | . . . Manual 1 | . 1 . Terminals 1 | . 1 . Fabricators . | . . . Repair Stations . | . . . Recycling Units . | . . . Scanalyzers . | . . . Garrison Access . | . . . Terminal Hacks . | . . . Fabricator Hacks . | . . . Repair Station Hacks . | . . . Recycling Unit Hacks . | . . . Scanalyzer . | . . . Garrison Access Hacks . | . . . Unauthorized Hacks . | . . . Terminals . | . . . Fabricators . | . . . Repair Stations . | . . . Recycling Units . | . . . Scanalyzers . | . . . Garrison Access . | . . . Data Cores Recovered . | . . . Used . | . . . Hacking Detections . | . . . Full Trace Events . | . . . Feedback Events . | . . . Feedback Blocked . | . . . Robot Schematics Acquired . | . . . Robots Built . | . . . Authchips . | . . . Time . | . . . Total Robot Build Rating . | . . . Part Schematics Acquired . | . . . Parts Built . | . . . Authchips . | . . . Time . | . . . Total Part Build Rating . | . . . Parts Repaired . | . . . Time . | . . . Parts Recycled . | . . . Recycled Matter . | . . . Retrieved Matter . | . . . Retrieved Components . | . . . Parts Scanalyzed . | . . . Part Schematics Acquired . | . . . Parts Damaged . | . . . Bothacking | -11 -10 -10 ------------ Run | Yrd Mat Sub Used RIF Installer . | . . . Robots Hacked . | . . . Non-combat . | . . . Combat . | . . . Robot Hacks Applied . | . . . Relay Couplers Released . | . . . Fabnet Peak Effective % . | . . . Robots Rewired . | . . . Allies Hacked . | . . . Hacks Repelled . | . . . Allies | -11 -10 -10 -------- Run | Yrd Mat Sub Total Allies . | . . . Largest Group . | . . . Highest-Rated Group . | . . . Highest-Rated Ally . | . . . Total Orders . | . . . Ally Attacks . | . . . Total Damage . | . . . Kills . | . . . Allies Corrupted . | . . . Allies Melted . | . . . Intel | -11 -10 -10 ------- Run | Yrd Mat Sub Robot Analysis Total . | . . . Derelict Logs Recovered 1 | . . 1 Drone Launches . | . . . Drone Recoveries . | . . . Exploration | -11 -10 -10 ------------- Run | Yrd Mat Sub Turns Passed 1274 | 140 937 197 Spaces Moved 396 | 83 224 89 Core 7 | 7 . . Treads . | . . . Legs 389 | 76 224 89 Wheels . | . . . Hover . | . . . Flight . | . . . Fastest Speed 50 | 50 120 190 Average Speed 159 | 114 164 190 Slowest Speed 260 | 120 260 190 Overloaded Moves . | . . . Propulsion Burnouts . | . . . Robots Hopped . | . . . Cave-ins Triggered . | . . . Exploration Rate (%) 16 | 4 36 9 Regions Visited 2 Branch Regions 1 Pre-discovered Areas 1 | . . 1 Known Exits Taken . | . . . Unknown Exits Taken 2 | 1 1 . Scrap Searched . | . . . Spaces Dug . | . . . Terrain Destroyed . | . . . Melee . | . . . Projectile . | . . . AOE . | . . . Terrain Rammed . | . . . Walls Destroyed . | . . . Machines Disabled . | . . . Actions | -11 -10 -10 --------- Run | Yrd Mat Sub Total 954 | 116 734 104 Wait 437 | . 436 1 Move 394 | 82 223 89 Hop . | . . . Pick Up 29 | 15 13 1 Fast Attach 1 | . 1 . Attach 11 | 7 4 . Detach . | . . . Swap 9 | . 7 2 Drop 6 | . 4 2 Fire 64 | 12 43 9 Melee 3 | . 3 . Ram . | . . . Kick . | . . . Crush . | . . . Escape Stasis . | . . . Rewire . | . . . Trap . | . . . Miscellaneous . | . . . Route ------- -11/Scrapyard -10/Materials -10/Subcaves History --------- Turn | Location | Event 10 | -11/Scrapyard | Discovered new exit (range 15) 141 | -11/Scrapyard | Entered Materials 313 | -10/Materials | Build established: Mutant 573 | -10/Materials | Discovered new exit (range 8) 815 | -10/Materials | Core integrity fell below 50% 867 | -10/Materials | Destroyed 7 combat bots 874 | -10/Materials | Lost 4 parts (1p2n1w) 1078 | -10/Materials | Entered Subcaves 1088 | -10/Subcaves | Learned location of Storage (-8) 1163 | -10/Subcaves | Build established: Scavenger-Mutant 1246 | -10/Subcaves | Ambushed by swarm of Subdwellers 1249 | -10/Subcaves | Ambushed by Subdwellers from Twisted Machinery 1249 | -10/Subcaves | Ambushed by Subdwellers from Twisted Machinery 1256 | -10/Subcaves | Core integrity fell below 20% 1275 | -10/Subcaves | Destroyed by XG-XYL(R) with Subdweller Machine Gun Last Messages --------------- 01249_ PM-G2J(R) destroyed. 01249_ KR-PZF(R) angrily emerges from the Twisted Machinery. 01250_ C9-2Y5(R) emerges from the Twisted Machinery. 01251_ CU-N4G(R) emerges from the Twisted Machinery. 01252_ HV Slug penetrates FR-FFP(R). 01255_ HV Slug penetrates W4-744(R). 01255_ W4-744(R) suffers critical hit (Destroy). 01256_ Subatomizers dissect the Disposable Heat Sink. 01260_ FR-FFP(R) affixes Scrap Shield Fragment to Scrap Shield. 01263_ C9-2Y5(R) destroyed. 01263_ FL-CE4(h) destroyed. 01271_ KR-PZF(R) affixes Scrap Shield Fragment to Scrap Shield. 01275_ KR-PZF(R) suffers critical hit (Burn). 01275_ KR-PZF(R) destroyed. Map ----- +----------------------------------------------------+ | ?????????????????????????????????????????????????? | | ?????????????????????????????????????????????????? | | ?????????????????????????????????????????????????? | | ?????????????????????????????????????????????????? | | ?????????????????????????????????????????????????? | | ?????????????????????????????????????????????????? | | ?????????????????????????????????????????????????? | | #????????????????????????????????????????????????? | | ?????????????????????????????????????????????????? | | ?#???????????????????????????????????????????????? | | ???????#?????????????????????????????????????????? | | ??????????????????????#??????#???????????????????? | | ??????#???????????????#??????????????????????????? | | ??#??????????????????? #?????????????????????????? | | ??????#????????????#?? ????????#????????????????? | | #????????#????????????# ??????????#??????????????? | | ?????#????????????????# #???#????????????????????? | | ########"#????????????# ##???????????????????????? | | " " " ???????????## ##??????????????????????? | | """"" """???????#?## ???????????????????????? | | #?????????????? #???????????????????????? | | # "###???#??###?#####% #???????????????????????? | | # ""###???#???# ##%] #%!##??????????????????????? | | #""" ##???????# !=%% ##?????????????????????? | | #" ##??????# !%&=R ##????????????????????? | | ##### ##?????# ## ###@ #????????????????????? | | ##?## ""###???# ###?# #???????????????????? | | ### """""#?#?# ##???### ?????????????????? | | ""## """ ##### ##???#??# ??????????????? | | ## " # # #???????## ????????????? | | ##?????????#### ??????????? | | # #???????????????? ??????????? | | ## ## # ###????????????????????????????? | | ?###################?????????????????????????????? | | ?#????????????#??????????????????????????????????? | | ?????????????#?#?????????????????????????????????? | | #??????#???????#??????#??????????????????????????? | | ##?????????????????????????##?#??????????????????? | | ????????????????????#?#??????????????????????????? | | ????????#???????##??#????????????????????????????? | | ?????????????????????????????????????????????????? | | ??????????????#??????????????????????????????????? | | #???????????????????#????????????????????????????? | | ????????????#?????#??????????????????????????????? | | ?????????????????????????????????????????????????? | | ???#?????????????????????????????????????????????? | | ?????????????????????????????????????????????????? | | ?????????????????????????????????????????????????? | | | | | +----------------------------------------------------+ Best States ------------- Heat Dissipation 25 Energy Generation 10 Energy Capacity 250 Matter Stores 300 Matter Capacity 300 Sight Range 16 Terrain Scan Range 16 Terrain Scan Density 10 Evasion (%) 55 Item Schematics ----------------- None Robot Schematics ------------------ None Fabricated ------------ Nothing Alien Tech Used ----------------- None Achievements -------------- None Challenges ------------ None Game ------ Seed FluxParticleMicroactuators Manual? 0 Play Time 00:10:39 Cumulative 14.1 hours Start 2024.11.02 @ 03:03:27 End 2024.11.02 @ 03:12:35 Sessions 1 Manual Loads 0 Difficulty Rogue Special Mode None Game No. 22 Rogue 22 Adventurer 0 Explorer 0 Win Type - Total 0 Types 0/0/0/0/0/0/0/0/0 Lore% 3 Gallery% 18 Achievement% 16 Wizard Run 0 Options --------- Layout 1 ASCII 0 Keyboard 0 Movement Mouse Keybinds 0 Fullscreen 1 Font 24/Smallcaps Map View 50x35 Zoom Use 0% Tactical HUD 1 Map Filters NONE Filters NONE Steam 1 RUN: 0d5d8357-36c5-4206-bf7a-8f66064b81fb